Cogmind - Beta 17.1 @@@ ROGUE MODE // 2026.08.29 @ 12:53:24 Player: Clog Result: Destroyed by 9P-876(R) with Subdweller Machine Gun Performance ------------- Evolutions (0) 0 Regions Visited (2) 400 Robots Destroyed (30) 150 Value Destroyed (497) 497 Prototype IDs (0) 0 Alien Tech Used (0) 0 Bonus (0) 0 TOTAL SCORE: 1047 Bonus ------- None Cogmind --------- Core Integrity 0/250 Matter 170/300 Energy 250/250 System Corruption 0% Temperature Cool (0) Movement Rolling (95) Ox1 Location -10/Subcaves Parts ------- > --- POWER (1) -------- Ion Engine > --- PROPULSION (2) --- Wheel Wheel > --- UTILITY (2) ------ Large Storage Unit > --- WEAPON (2) ------- Heavy Assault Rifle Subdweller Shrapnel Launcher > --- INVENTORY (15) --- Subdweller Power Source Subdweller Monowheel Hacking Suite Subdweller Beam Cannon Heavy Assault Rifle Battle Rifle Barrage Gun Grenade Launcher Mining Laser Shrapnel Trap Peak State ------------ > --- POWER ------------ Ion Engine > --- PROPULSION ------- Light Treads Light Treads > --- UTILITY ---------- Small Storage Unit Seismic Detector > --- WEAPON ----------- Heavy Assault Rifle Heavy Assault Rifle > --- INVENTORY -------- Ion Engine Wheel Wheel Hacking Suite Light Assault Rifle Heavy Assault Rifle Grenade Launcher Mining Laser [Rating: 10] Favorites ----------- Power Ion Engine Engine Ion Engine Propulsion Light Treads Treads Light Treads Wheel Wheel Utility Large Storage Unit Device Seismic Detector Storage Large Storage Unit Weapon Heavy Assault Rifle Energy Gun Medium Laser Ballistic Gun Heavy Assault Rifle Launcher Grenade Launcher Special Weapon Mining Laser Build | -11 -10 -10 ------- Run | Yrd Mat Sub Slots Evolved . | . . . Power . | . . . Propulsion . | . . . Utility . | . . . Weapon . | . . . Parts Attached 18 | 7 5 6 Power 2 | 1 . 1 Engine 2 | 1 . 1 Core . | . . . Reactor . | . . . Propulsion 4 | 2 . 2 Treads 2 | 2 . . Leg . | . . . Wheel 2 | . . 2 Hover . | . . . Flight . | . . . Utility 3 | 2 1 . Device 1 | 1 . . Storage 2 | 1 1 . Processor . | . . . Hackware . | . . . Protection . | . . . Artifact . | . . . Weapon 9 | 2 4 3 Energy Gun 1 | 1 . . Energy Cannon . | . . . Ballistic Gun 5 | 1 3 1 Ballistic Cannon . | . . . Launcher 2 | . 1 1 Special Weapon 1 | . . 1 Impact Weapon . | . . . Slashing Weapon . | . . . Piercing Weapon . | . . . Special Melee Weapon . | . . . Unidentified Prototypes . | . . . Parts Lost 6 | . 1 5 Power 1 | . . 1 Propulsion 2 | . . 2 Utility 1 | . 1 . Weapon 2 | . . 2 Highest Loss Streak 4 | . 1 4 To Critical Strikes . | . . . Average Backups 6 | 4 7 7 Power 1 | . 1 1 Propulsion 1 | 1 2 . Utility . | . . 1 Weapon 3 | 1 3 3 Tool/Special . | . . . Unused Backups 8 | 1 1 6 Power 1 | . . 1 Propulsion 2 | 1 . 1 Utility 1 | . . 1 Weapon 4 | . 1 3 Tool/Special . | . . . Average Slot Usage (%) 88 | . 95 83 Engine 13 | . 14 13 Treads 14 | . 28 5 Wheel 13 | . . 21 Device 4 | . 10 . Storage 14 | . 14 14 Energy Gun 2 | . 5 . Ballistic Gun 24 | . 21 27 Peak Build Rating 10 | 7 10 9 Average Rating 8 | 5 8 8 On Entrance 5 | . 7 9 Avg Prop Armor Cover (%) . | . . . Naked Turns . | . . . Heaviest Build 32 | 14 32 31 Greatest Support 40 | 40 40 40 Greatest Overweight (x) 1 | . . 1 Average Overweight (x) . | . . . Largest Inventory Capacity 15 | 8 15 15 Average Capacity 12 | 7 10 15 Most Carried 11 | 6 8 11 Average Carried 7 | 4 7 7 Final Capacity 15 | 8 15 15 Final Carried 10 | 5 8 10 Class Distribution -------------------- 100% | Mutant Dominant Class ---------------- Mutant | -10/Materials Mutant | -10/Subcaves Resources | -11 -10 -10 ----------- Run | Yrd Mat Sub Matter Collected 739 | 216 304 219 Remotely . | . . . Salvage Created 636 | 44 378 214 Parts 53 | 9 25 19 Haulers Intercepted . | . . . Recyclers Shooed 3 | 1 2 . Parts Field Recycled . | . . . Retrieved Matter . | . . . Parts Self-Destructed 13 | . . 13 Prevented . | . . . Parts Restored . | . . . Kills | -11 -10 -10 ------- Run | Yrd Mat Sub Combat Hostiles Destroyed 20 | . 11 9 Guns 12 | . 6 6 AOE 8 | . 5 3 Classes Destroyed 8 | 1 5 2 Tunneler 4 | 3 1 . Recycler 3 | . 3 . Operator 1 | . 1 . Watcher 2 | . 2 . Swarmer 13 | . 9 4 Grunt 2 | . 2 . Sentry 1 | . . 1 Subdweller 4 | . . 4 Best Kill Streak 6 | 1 6 3 Combat Bots Only 3 | . 3 3 Max Kills in Single Turn 3 | 1 3 1 Gunslinging . | . . . Exploded 3 | . 3 1 Melee . | . . . Uniques/NPCs Destroyed . | . . . Combat | -11 -10 -10 -------- Run | Yrd Mat Sub Hostile Shots Fired 120 | . 74 46 Missed 37 | . 20 17 Hits 83 | . 54 29 Projectile 83 | . 54 29 Critical Strikes 2 | . 1 1 Damage Taken 1141 | . 492 649 Core 251 | . 61 190 Absorbed by Shields . | . . . Core Remaining (%) 100 | 100 . . Volleys Fired 74 | 9 32 33 Largest 2 | 2 2 2 Hottest 100 | 70 70 100 Shots Fired 126 | 18 56 52 Gun 108 | 18 48 42 Cannon . | . . . Launcher 16 | . 8 8 Special 2 | . . 2 Kinetic 95 | 9 38 48 Thermal 21 | 9 10 2 Explosive 10 | . 8 2 Electromagnetic . | . . . Robot Hit Streak 7 | 7 6 7 Robot Miss Streak 3 | 2 3 2 Penetration Max . | . . . Secondary Targets . | . . . Shots Hit Robots 74 | 10 31 33 Core Hits 52 | 6 28 18 Critical Kills . | . . . Critical Parts Destroyed . | . . . Critical Strikes 3 | 2 1 . Burn 3 | 2 1 . Melee Attacks . | . . . Impact . | . . . Slashing . | . . . Piercing . | . . . Sneak Attacks . | . . . Combat Hostiles . | . . . Follow-up Attacks . | . . . Damage Inflicted 2209 | 117 1041 1051 Guns 1012 | 117 434 461 Cannons . | . . . Explosions 1197 | . 607 590 Melee . | . . . Ramming . | . . . Kinetic 1308 | 29 335 944 Thermal 187 | 88 99 . Explosive 714 | . 607 107 Electromagnetic . | . . . Impact . | . . . Slashing . | . . . Piercing . | . . . Highest Corruption . | . . . Average Corruption . | . . . Corruption Purged . | . . . Corruption Blocked . | . . . Overload Shots . | . . . Overflow Damage 89 | . 45 44 Projectiles . | . . . Explosions 89 | . 45 44 Melee . | . . . Knockbacks . | . . . Impact . | . . . Kinetic . | . . . Secondary . | . . . Self-Inflicted Damage . | . . . Shots . | . . . Rammed . | . . . Targets Rammed . | . . . Kicked . | . . . Crushed . | . . . Highest Temperature 254 | 80 146 254 Average Temperature 54 | 29 49 142 Received Heat Transfer 498 | . 84 414 Siege Activations . | . . . Martial Activations . | . . . Shielding Activations . | . . . Robots Disrupted . | . . . Combat Hostiles . | . . . Robots Corrupted . | . . . Combat Hostiles . | . . . Parts Fried . | . . . Impact Corruptions . | . . . Robots Melted . | . . . Combat Hostiles . | . . . Parts Melted 2 | . 2 . Heat Transferred 777 | 407 370 . Parts Sabotaged . | . . . Parts Stolen . | . . . Parts Stripped . | . . . Power Chain Reactions . | . . . Alert | -11 -10 -10 ------- Run | Yrd Mat Sub Maximum Alert Level . | . . . Low Security (%) 100 | 100 100 . Level 1 . | . . . Level 2 . | . . . Level 3 . | . . . Level 4 . | . . . Level 5 . | . . . High Security . | . . . Max Security . | . . . Peak Influence 185 | 5 185 . Initial . | . . . Average 63 | . 84 . Influence Increases 450 | 15 325 110 Destroy 0b10 Robot/C 320 | . 220 100 Destroy 0b10 Robot/NC 50 | 15 35 . Destroy Leader 44 | . 34 10 Destroy Structure 21 | . 21 . Lose Combat Pursuer 15 | . 15 . Influence Decreases 450 | 15 196 239 Entered New Map 63 | . . 63 Time Decay 377 | 15 186 176 Lost Part 10 | . 10 . Squads Dispatched . | . . . Investigation . | . . . Extermination . | . . . Reinforcement . | . . . Assault . | . . . Garrison . | . . . Intercept . | . . . Searches Triggered . | . . . Construction Impeded . | . . . Haulers Reinforced . | . . . Active Scanning Responses . | . . . Cargo Convoy Interrupts . | . . . Stealth | -11 -10 -10 --------- Run | Yrd Mat Sub Distress Signals 3 | . 3 . Communications Jammed . | . . . Distress Signals . | . . . Times Spotted 25 | . 15 10 Peak Tracking Total 4 | . 4 2 Tactical Retreats 1 | . 1 . Traps | -11 -10 -10 ------- Run | Yrd Mat Sub Traps Triggered . | . . . Indirectly . | . . . Trap Hack Attempts . | . . . Triggered . | . . . Disarmed . | . . . Reprogrammed . | . . . Reused . | . . . Traps Extracted . | . . . Installed . | . . . Triggered . | . . . Most Traps Carried 1 | . . 1 Machines | -11 -10 -10 ---------- Run | Yrd Mat Sub Machines Disabled 1 | . 1 . Max in Single Turn 1 | . 1 . Machines Repaired . | . . . Machines Dismantled . | . . . Machines Sabotaged . | . . . Overloaded Fab Kills . | . . . Hacking | -11 -10 -10 --------- Run | Yrd Mat Sub Machines Accessed 3 | . 3 . Terminals 3 | . 3 . Fabricators . | . . . Repair Stations . | . . . Recycling Units . | . . . Scanalyzers . | . . . Garrison Access . | . . . Total Hacks 4 | . 4 . Successful 1 | . 1 . Failed 3 | . 3 . Catastrophic 1 | . 1 . Database Lockouts . | . . . Manual 4 | . 4 . Terminals 4 | . 4 . Fabricators . | . . . Repair Stations . | . . . Recycling Units . | . . . Scanalyzers . | . . . Garrison Access . | . . . Terminal Hacks . | . . . Fabricator Hacks . | . . . Repair Station Hacks . | . . . Recycling Unit Hacks . | . . . Scanalyzer . | . . . Garrison Access Hacks . | . . . Unauthorized Hacks 1 | . 1 . Terminals 1 | . 1 . Skim 1 | . 1 . Fabricators . | . . . Repair Stations . | . . . Recycling Units . | . . . Scanalyzers . | . . . Garrison Access . | . . . Data Cores Recovered 1 | . 1 . Used . | . . . Hacking Detections 3 | . 3 . Full Trace Events . | . . . Feedback Events . | . . . Feedback Blocked . | . . . Robot Schematics Acquired . | . . . Robots Built . | . . . Authchips . | . . . Time . | . . . Total Robot Build Rating . | . . . Part Schematics Acquired . | . . . Parts Built . | . . . Authchips . | . . . Time . | . . . Total Part Build Rating . | . . . Part Studies Acquired . | . . . Parts Repaired . | . . . Time . | . . . Parts Recycled . | . . . Recycled Matter . | . . . Retrieved Matter . | . . . Retrieved Components . | . . . Parts Scanalyzed . | . . . Part Schematics Acquired . | . . . Parts Damaged . | . . . Bothacking | -11 -10 -10 ------------ Run | Yrd Mat Sub Used RIF Installer . | . . . Robots Hacked . | . . . Non-combat . | . . . Combat . | . . . Robot Hacks Applied . | . . . Relay Couplers Released . | . . . Fabnet Peak Effective % . | . . . Robots Rewired . | . . . Allies Hacked . | . . . Hacks Repelled . | . . . Allies | -11 -10 -10 -------- Run | Yrd Mat Sub Total Allies . | . . . Largest Group . | . . . Highest-Rated Group . | . . . Highest-Rated Ally . | . . . Total Orders . | . . . Ally Attacks . | . . . Total Damage . | . . . Kills . | . . . Allies Corrupted . | . . . Allies Melted . | . . . Intel | -11 -10 -10 ------- Run | Yrd Mat Sub Active Infowar (turns) 416 | 20 396 . Seismic 416 | 20 396 . Robot Analysis Total . | . . . Derelict Logs Recovered 2 | . . 2 Drone Launches . | . . . Drone Recoveries . | . . . Exploration | -11 -10 -10 ------------- Run | Yrd Mat Sub Turns Passed 1594 | 185 546 863 Spaces Moved 1034 | 96 210 728 Core 12 | 12 . . Treads 392 | 84 210 98 Legs . | . . . Wheels 630 | . . 630 Hover . | . . . Flight . | . . . Fastest Speed 50 | 50 160 95 Average Speed 119 | 146 160 103 Slowest Speed 160 | 160 160 160 Overloaded Moves . | . . . Propulsion Burnouts . | . . . Robots Hopped . | . . . Potential Cave-ins . | . . . Cave-ins Triggered . | . . . Exploration Rate (%) 32 | 4 45 47 Regions Visited 2 Branch Regions 1 Pre-discovered Areas 1 | . . 1 Known Exits Taken . | . . . Unknown Exits Taken 2 | 1 1 . Scrap Searched 4 | . . 4 Spaces Dug . | . . . Terrain Destroyed 105 | . 21 84 Melee . | . . . Projectile . | . . . AOE 105 | . 21 84 Terrain Rammed . | . . . Walls Destroyed . | . . . Machines Disabled . | . . . Actions | -11 -10 -10 --------- Run | Yrd Mat Sub Total 1269 | 125 366 778 Wait 109 | . 109 . Move 1032 | 95 209 728 Hop . | . . . Pick Up 23 | 13 3 7 Fast Attach 2 | . 2 . Attach 12 | 7 . 5 Detach 1 | . 1 . Swap 11 | . 6 5 Drop 5 | 1 4 . Fire 74 | 9 32 33 Melee . | . . . Ram . | . . . Kick . | . . . Crush . | . . . Escape Stasis . | . . . Rewire . | . . . Trap . | . . . Miscellaneous . | . . . Route ------- -11/Scrapyard -10/Materials (discovered 3 exits: [*Mat] / [*Min] / [*Sub]) -10/Subcaves (discovered 1 exit: Rec) History --------- Turn | Location | Event 8 | -11/Scrapyard | Discovered new exit (range 15) 186 | -11/Scrapyard | Entered Materials 301 | -10/Materials | Build established: Mutant 402 | -10/Materials | Discovered new exit (range 11) 576 | -10/Materials | Discovered new exit (range 6) 725 | -10/Materials | Discovered new exit (range 5) 732 | -10/Materials | Entered Subcaves 841 | -10/Subcaves | Learned location of Storage (-7) 910 | -10/Subcaves | Core integrity fell below 50% 940 | -10/Subcaves | Lost 4 parts (2n2w) 1023 | -10/Subcaves | A swath of the cavern ceiling suddenly collapsed 1269 | -10/Subcaves | Disturbed a concealed Subdweller 1397 | -10/Subcaves | Identified exit to Recycling 1401 | -10/Subcaves | Core integrity fell below 20% 1583 | -10/Subcaves | Ambushed by Subdwellers from Twisted Machinery 1595 | -10/Subcaves | Destroyed by 9P-876(R) with Subdweller Machine Gun Last Messages --------------- 01281_ XU-U0U(R) destroyed. 01284_ Acquired 25 matter. 01287_ Acquired Sub. Beam Cannon. 01389_ Acquired 7 matter. 01397_ Acquired derelict log, extracted data. Loading 1 Recycling entrance... 01400_ Acquired 3 matter. 01409_ S-10 Pest destroyed. 01413_ Acquired 10 matter. 01419_ Lgt. Ion Engine fries itself beyond repair. 01420_ Subatomizers dissect the Disposable Heat Sink. 01422_ Y-45 Defender destroyed. 01428_ Heat Sink fries itself beyond repair. 01469_ Acquired 6 matter. 01482_ Acquired 8 matter. 01583_ UZ-KT2(R) emerges from the Twisted Machinery. 01586_ Destroyed Sub. Optics. Map ----- +----------------------------------------------------+ | ?????????????????????????????????????????????????? | | ?????????????????????????????????????????????????? | | ?????????????????????????????????????????????????? | | ?????????????????????????????????????????????????? | | ?????????????????????????????????????????????????? | | ?????????????????????????????????????????????????? | | ?????????????????????????????????????????????????? | | ?????????????????????????????????????????????????? | | ?????????????????????????????????????????????????? | | ?????????????????????????????????????????????????? | | ????????????????????????##???????????????????????? | | ????????????????????????;;##;????????????????????? | | ???????????????????????? ;; ????????????????????? | | ???????????????????????? ???? ??????????????? | | ???????????????????????? R ???? ????????????? | | ????????????????????????; ??? ????????????? | | ????????????????????????; ??? ???????????? | | ????????????????????????; ??? ???????????? | | ???####????????????????? ;?? ??????????? | | ?## ????????####?????? ## ??????????? | | ## ?????????# ###????# #; R ??????????? | | ???????#### ##???# ????????????? | | #???????# ##### ??????????????? | | #????????# ; ?????????????????? | | #????###?# #???????????????????? | | ###### ### @ #???????????????????? | | #???????????????????? | | ### #???????????????????? | | ## ##??# #???????????????????? | | ###### ##????##???????????????????? | | # ## #????# ##??????????????????????????? | | ## ## #????######???????????????????????????? | | ?## #?????????????????????????????????????? | | ??## ##?????????????????????????????????????? | | ???## ##??????????????????????????????????????? | | ????######???????????????????????????????????????? | | ?????????????????????????????????????????????????? | | ?????????????????????????????????????????????????? | | ?????????????????????????????????????????????????? | | ?????????????????????????????????????????????????? | | ?????????????????????????????????????????????????? | | ?????????????????????????????????????????????????? | | ?????????????????????????????????????????????????? | | ?????????????????????????????????????????????????? | | ?????????????????????????????????????????????????? | | ?????????????????????????????????????????????????? | | ?????????????????????????????????????????????????? | | ?????????????????????????????????????????????????? | | ?????????????????????????????????????????????????? | | ?????????????????????????????????????????????????? | +----------------------------------------------------+ Best States ------------- Heat Dissipation 25 Energy Generation 10 Energy Capacity 250 Matter Stores 300 Matter Capacity 300 Sight Range 16 Terrain Scan Density 10 Evasion (%) 41 Recoil Reduction 2 Item Schematics ----------------- None Robot Schematics ------------------ None Fabricated ------------ Nothing Repaired ---------- Nothing Studied --------- None Alien Tech Used ----------------- None Achievements -------------- None Challenges ------------ None Game ------ Seed RefineryZioniteDissipator Manual? 0 Play Time 00:10:49 Cumulative 35.5 hours Start 2026.08.29 @ 12:43:45 End 2026.08.29 @ 12:53:24 Sessions 1 Manual Loads 0 Difficulty Rogue Special Mode None Game No. 42 Rogue 39 Adventurer 3 Explorer 0 Win Type - Total 1 Types 1/0/0/0/0/0/0/0/0/0 Lore% 32 Gallery% 30 Achievement% 30 Wizard Run 0 Options --------- Layout 1 ASCII 0 Keyboard 0 Movement Mouse Keybinds 0 Fullscreen 1 Font 32/SmallcapsGlow Map View 50x35 Zoom Use 0% Tactical HUD 1 Map Filters NONE Filters NONE Steam 1 RUN: 73d3e91e-cc9f-49ce-9bd4-19ac27b0185c